[Event "DVM U12 2019"]
[Site "Magedburg"]
[Date "2019.12.29"]
[Round "6"]
[White "Spranger, Tobias"]
[Black "Adelmeyer, Nelly"]
[Result "0-1"]
[ECO "A38"]
[WhiteElo "1390"]
[BlackElo "1453"]
[Annotator "NA"]
[PlyCount "100"]
[EventDate "2019.12.27"]
[EventType "team-tourn"]
[EventRounds "7"]
[EventCountry "GER"]
[SourceTitle "playchess.com"]
[Source "ChessBase"]
[SourceQuality "1"]
[WhiteTeam "SV Empor Berlin"]
[BlackTeam "SV Roter Turm Halle"]
[WhiteTeamCountry "GER"]
[BlackTeamCountry "GER"]
[TimeControl "40/5400+30:1800+30"]

1. c4 {[%emt 0:00:00]} c5 {[%emt 0:00:00]} 2. Nc3 {[%emt 0:00:00]} Nc6 {[%emt 0:00:00]} 3. g3 {[%emt 0:00:00]} Nf6 {[%emt 0:00:00]} 4. Bg2 {[%emt 0:00:00]} g6 {[%emt 0:00:00]} 5. Nf3 {[%emt 0:00:00]} Bg7 {[%emt 0:00:01]} 6. O-O {[%emt 0:00:00]} O-O {[%emt 0:00:05]} 7. d3 {[%emt 0:00:00]} Qb6 {[%emt 0:00:20]} 8. Na4 {[%emt 0:01:04]} Qc7 {[%emt 0:03:07]} 9. Nxc5 {[%emt 0:01:30]} d6 {[%emt 0:01:12]} 10. Nb3 {[%emt 0:00:15]} Nd7 {[%emt 0:04:20]} 11. e4 {[%emt 0:01:37]} Nde5 {[%emt 0:00:21]} 12. Nxe5 {[%emt 0:00:22]} Nxe5 {[%emt 0:00:09]} 13. f4 {[%emt 0:00:10]} Nc6 {[%emt 0:00:45]} 14. Qe2 {[%emt 0:00:52]} Nd4 {[%emt 0:00:52]} 15. Nxd4 {[%emt 0:01:41]} Bxd4+ {[%emt 0:00:48]} 16. Be3 {[%emt 0:00:09]} Bg7 {[%emt 0:00:34]} 17. Rae1 {[%emt 0:01:10]} Bd7 {[%emt 0:01:51]} 18. Qf2 {[%emt 0:08:24]} a6 {[%emt 0:01:11]} 19. c5 {[%emt 0:00:59]} Bb5 {[%emt 0:02:29]} 20. Rd1 {[%emt 0:01:56]} Rfd8 {[%emt 0:01:11]} 21. cxd6 {[%emt 0:01:24]} Rxd6 {[%emt 0:01:09]} 22. e5 {[%emt 0:04:18]} Rxd3 {[%emt 0:04:21]} 23. Rxd3 {[%emt 0:00:23]} Bxd3 {[%emt 0:00:24]} 24. Rc1 {[%emt 0:01:39]} Qa5 {[%emt 0:10:00]} 25. a3 {[%emt 0:06:16]} Qa4 {[%emt 0:08:45]} 26. Bxb7 {[%emt 0:01:46]} Rb8 {[%emt 0:02:06]} 27. Bf3 {[%emt 0:00:42]} Be4 {[%emt 0:00:56]} 28. Bd1 {[%emt 0:04:30]} Qb5 {[%emt 0:04:18]} 29. b4 {[%emt 0:01:45]} Qd5 {[%emt 0:04:52]} 30. Ba4 {[%emt 0:03:41]} Rd8 {[%emt 0:04:21]} 31. Qe2 {[%emt 0:03:30]} Bd3 {[%emt 0:01:43]} 32. Qe1 {[%emt 0:04:30]} Qa2 {[%emt 0:05:40]} 33. Bb6 {[%emt 0:05:37]} Rb8 {[%emt 0:03:21]} 34. Qc3 {[%emt 0:01:50]} Be4 {[%emt 0:03:25]} 35. Bf2 {[%emt 0:02:00]} Bf8 {[%emt 0:06:47]} 36. Re1 {[%emt 0:09:17]} Bd5 {[%emt 0:00:45]} 37. Qe3 {[%emt 0:08:35]} e6 {[%emt 0:01:16]} 38. Qd3 {[%emt 0:05:50]} Bc4 {[%emt 0:08:36]} 39. Qe3 {[%emt 0:10:57]} Bxb4 {[%emt 0:01:27]} 40. Qd4 {[%emt 0:04:39]} Bxe1 {[%emt 0:04:06]} 41. Bxe1 {[%emt 0:34:15]} Bd5 {[%emt 0:30:22]} 42. Bf2 {[%emt 0:01:08]} Qxa3 {[%emt 0:01:01]} 43. Bd1 {[%emt 0:01:37]} Rb1 {[%emt 0:01:17]} 44. Be1 {[%emt 0:01:03]} Qc1 {[%emt 0:01:59]} 45. Kf1 {[%emt 0:00:00]} Qxd1 {[%emt 0:00:00]} 46. Qf2 {[%emt 0:00:00]} Bc4+ {[%emt 0:00:00]} 47. Kg1 {[%emt 0:00:00]} Qxe1+ {[%emt 0:00:00]} 48. Qxe1 {[%emt 0:00:00]} Rxe1+ {[%emt 0:00:00]} 49. Kf2 {[%emt 0:00:00]} Rb1 {[%emt 0:00:00]} 50. Ke3 {[%emt 0:00:00]} a5 {[%emt 0:00:00] normal} 0-1

[Event "DVM U12 2019"]
[Site "Magedburg"]
[Date "2019.12.29"]
[Round "6"]
[White "Struebel, Tobias"]
[Black "Lieske, Aaron"]
[Result "0-1"]
[ECO "D50"]
[WhiteElo "1379"]
[BlackElo "1493"]
[Annotator "NA"]
[PlyCount "76"]
[EventDate "2019.12.27"]
[EventType "team-tourn"]
[EventRounds "7"]
[EventCountry "GER"]
[SourceTitle "playchess.com"]
[Source "ChessBase"]
[SourceQuality "1"]
[WhiteTeam "Schachzentrum Bemerode"]
[BlackTeam "SC Kreuzberg"]
[WhiteTeamCountry "GER"]
[TimeControl "40/5400+30:1800+30"]

1. d4 {[%emt 0:00:00]} d5 {[%emt 0:00:00]} 2. c4 {[%emt 0:00:00]} e6 {[%emt 0:00:00]} 3. Nc3 {[%emt 0:00:00]} Nf6 {[%emt 0:00:00]} 4. Bg5 {[%emt 0:00:00]} c6 {[%emt 0:01:18]} 5. e3 {[%emt 0:00:15]} Bb4 {[%emt 0:01:05]} 6. Qb3 {[%emt 0:03:58]} Bxc3+ {[%emt 0:01:12]} 7. bxc3 {[%emt 0:00:57]} O-O {[%emt 0:01:39]} 8. cxd5 {[%emt 0:00:35]} cxd5 {[%emt 0:01:04]} 9. c4 {[%emt 0:00:38]} Qa5+ {[%emt 0:01:38]} 10. Ke2 {[%emt 0:01:45]} Ne4 {[%emt 0:03:39]} 11. Nf3 {[%emt 0:01:24]} f6 {[%emt 0:05:19]} 12. Bf4 {[%emt 0:02:46]} g5 {[%emt 0:01:07]} 13. Bxb8 {[%emt 0:00:28]} g4 {[%emt 0:02:21]} 14. Qc2 {[%emt 0:00:27]} gxf3+ {[%emt 0:00:37]} 15. gxf3 {[%emt 0:00:17]} Nc3+ {[%emt 0:00:31]} 16. Kd3 {[%emt 0:00:32]} Rxb8 {[%emt 0:00:34]} 17. Qxc3 {[%emt 0:00:16]} Qa4 {[%emt 0:03:45]} 18. Qb3 {[%emt 0:01:01]} Qc6 {[%emt 0:01:29]} 19. Bg2 {[%emt 0:01:05]} b6 {[%emt 0:00:37]} 20. cxd5 {[%emt 0:00:51]} exd5 {[%emt 0:00:48]} 21. Rhg1 {[%emt 0:00:40]} Kh8 {[%emt 0:01:29]} 22. f4 {[%emt 0:00:26]} Ba6+ {[%emt 0:01:08]} 23. Kd2 {[%emt 0:00:13]} Bc4 {[%emt 0:00:22]} 24. Qc2 {[%emt 0:00:53]} b5 {[%emt 0:02:04]} 25. Bf1 {[%emt 0:00:53]} Rg8 {[%emt 0:01:40]} 26. Rxg8+ {[%emt 0:00:58]} Rxg8 {[%emt 0:00:16]} 27. Rc1 {[%emt 0:03:02]} Rg1 {[%emt 0:04:56]} 28. f3 {[%emt 0:06:49]} Qe6 {[%emt 0:04:11]} 29. Bh3 {[%emt 0:02:29]} Qxh3 {[%emt 0:01:53]} 30. Rxg1 {[%emt 0:01:38]} Qxh2+ {[%emt 0:00:11]} 31. Kc3 {[%emt 0:01:05]} Qxg1 {[%emt 0:00:29]} 32. Qf5 {[%emt 0:00:33]} Qxe3+ {[%emt 0:00:25]} 33. Kc2 {[%emt 0:00:25]} Qf2+ {[%emt 0:01:33]} 34. Kc3 {[%emt 0:00:40]} Qxf3+ {[%emt 0:00:21]} 35. Kb4 {[%emt 0:00:10]} Qe4 {[%emt 0:08:39]} 36. Qxf6+ {[%emt 0:00:24]} Kg8 {[%emt 0:00:12]} 37. Qd8+ {[%emt 0:00:32]} Kf7 {[%emt 0:00:30]} 38. Qd7+ {[%emt 0:00:11]} Qe7+ {[%emt 0:00:20] normal} 0-1

[Event "DVM U12 2019"]
[Site "Magedburg"]
[Date "2019.12.29"]
[Round "6"]
[White "Spinka, Georg Kamil"]
[Black "Freude, Paul"]
[Result "0-1"]
[ECO "D02"]
[WhiteElo "1338"]
[BlackElo "1491"]
[Annotator "NA"]
[PlyCount "108"]
[EventDate "2019.12.27"]
[EventType "team-tourn"]
[EventRounds "7"]
[EventCountry "GER"]
[SourceTitle "playchess.com"]
[Source "ChessBase"]
[SourceQuality "1"]
[WhiteTeam "SV Roter Turm Halle"]
[BlackTeam "SV Empor Berlin"]
[BlackTeamCountry "GER"]
[TimeControl "40/5400+30:1800+30"]

1. d4 {[%emt 0:00:00]} Nf6 {[%emt 0:00:00]} 2. Bf4 {[%emt 0:00:00]} d5 {[%emt 0:00:00]} 3. Nf3 {[%emt 0:00:03]} c5 {[%emt 0:00:31]} 4. dxc5 {[%emt 0:02:30]} Nc6 {[%emt 0:03:51]} 5. c3 {[%emt 0:01:20]} e6 {[%emt 0:01:21]} 6. e3 {[%emt 0:00:38]} Bxc5 {[%emt 0:00:35]} 7. Nbd2 {[%emt 0:01:38]} O-O {[%emt 0:01:16]} 8. Bd3 {[%emt 0:00:32]} Bd7 {[%emt 0:02:18]} 9. Qc2 {[%emt 0:00:28]} h6 {[%emt 0:01:08]} 10. h3 {[%emt 0:01:18]} Rc8 {[%emt 0:01:42]} 11. g4 {[%emt 0:00:34]} Re8 {[%emt 0:11:25]} 12. g5 {[%emt 0:02:58]} hxg5 {[%emt 0:01:06]} 13. Nxg5 {[%emt 0:04:23]} e5 {[%emt 0:04:23]} 14. Bg3 {[%emt 0:10:35]} e4 {[%emt 0:01:04]} 15. Be2 {[%emt 0:03:56]} a6 {[%emt 0:08:36]} 16. Nb3 {[%emt 0:13:08]} Ba7 {[%emt 0:01:37]} 17. Bf4 {[%emt 0:12:55]} Bb8 {[%emt 0:06:41]} 18. Bxb8 {[%emt 0:15:10]} Rxb8 {[%emt 0:00:26]} 19. Qd2 {[%emt 0:01:33]} Qe7 {[%emt 0:05:30]} 20. h4 {[%emt 0:07:25]} Be6 {[%emt 0:07:17]} 21. Nxe6 {[%emt 0:01:50]} Qxe6 {[%emt 0:02:28]} 22. h5 {[%emt 0:02:33]} Qd6 {[%emt 0:09:24]} 23. f3 {[%emt 0:06:10]} Qg3+ {[%emt 0:00:59]} 24. Kd1 {[%emt 0:01:42]} exf3 {[%emt 0:01:09]} 25. Bd3 {[%emt 0:01:31]} f2 {[%emt 0:01:33]} 26. Rf1 {[%emt 0:01:54]} Qxe3 {[%emt 0:01:08]} 27. Kc2 {[%emt 0:02:35]} Qxd2+ {[%emt 0:01:50]} 28. Kxd2 {[%emt 0:00:16]} Nxh5 {[%emt 0:01:12]} 29. Rxf2 {[%emt 0:00:17]} g6 {[%emt 0:01:20]} 30. Raf1 {[%emt 0:00:12]} Re7 {[%emt 0:01:06]} 31. Rg2 {[%emt 0:02:04]} Rbe8 {[%emt 0:03:50]} 32. Rf5 {[%emt 0:01:32]} Kh8 {[%emt 0:01:46]} 33. Rf1 {[%emt 0:00:59]} Ne5 {[%emt 0:01:30]} 34. Rgf2 {[%emt 0:01:44]} Nxd3 {[%emt 0:02:46]} 35. Kxd3 {[%emt 0:00:06]} f6 {[%emt 0:03:04]} 36. Rh2 {[%emt 0:00:18]} Kg7 {[%emt 0:01:07]} 37. Kd4 {[%emt 0:00:47]} Re5 {[%emt 0:02:07]} 38. Nc5 {[%emt 0:00:10]} Ng3 {[%emt 0:00:45]} 39. Rff2 {[%emt 0:01:08]} Nf5+ {[%emt 0:00:30]} 40. Kd3 {[%emt 0:00:13]} Re3+ {[%emt 0:00:48]} 41. Kc2 {[%emt 0:30:28]} R8e7 {[%emt 0:34:13]} 42. Rd2 {[%emt 0:00:56]} R3e5 {[%emt 0:02:41]} 43. Rh3 {[%emt 0:00:00]} Ne3+ {[%emt 0:00:00]} 44. Kb3 {[%emt 0:00:00]} Nc4 {[%emt 0:00:00]} 45. Rd4 {[%emt 0:00:00]} Rc7 {[%emt 0:00:00]} 46. Nd3 {[%emt 0:00:00]} Re3 {[%emt 0:00:00]} 47. Rxe3 {[%emt 0:00:00]} Nxe3 {[%emt 0:00:00]} 48. Nf4 {[%emt 0:00:00]} g5 {[%emt 0:00:00]} 49. Nxd5 {[%emt 0:00:00]} Nxd5 {[%emt 0:00:00]} 50. Rxd5 {[%emt 0:00:00]} g4 {[%emt 0:00:00]} 51. Rd3 {[%emt 0:00:00]} Kg6 {[%emt 0:00:00]} 52. Kc2 {[%emt 0:00:00]} Kg5 {[%emt 0:00:00]} 53. Kd2 {[%emt 0:00:00]} Re7 {[%emt 0:00:00]} 54. Rd5+ {[%emt 0:00:00]} f5 {[%emt 0:00:00] normal} 0-1

[Event "DVM U12 2019"]
[Site "Magedburg"]
[Date "2019.12.29"]
[Round "6"]
[White "Koulouris, Fabian"]
[Black "Bangiev, Anton"]
[Result "0-1"]
[ECO "B07"]
[WhiteElo "1261"]
[BlackElo "1431"]
[Annotator "NA"]
[PlyCount "59"]
[EventDate "2019.12.27"]
[EventType "team-tourn"]
[EventRounds "7"]
[EventCountry "GER"]
[SourceTitle "playchess.com"]
[Source "ChessBase"]
[SourceQuality "1"]
[WhiteTeam "SC Kreuzberg"]
[BlackTeam "Schachzentrum Bemerode"]
[BlackTeamCountry "GER"]
[TimeControl "40/5400+30:1800+30"]

1. e4 {[%emt 0:00:00]} d6 {[%emt 0:00:00]} 2. d4 {[%emt 0:00:00]} Nf6 {[%emt 0:00:00]} 3. Nc3 {[%emt 0:00:00]} g6 {[%emt 0:00:00]} 4. Bg5 {[%emt 0:00:00]} Bg7 {[%emt 0:00:00]} 5. Qd2 {[%emt 0:00:01]} O-O {[%emt 0:04:21]} 6. O-O-O {[%emt 0:00:29]} Nc6 {[%emt 0:01:14]} 7. f3 {[%emt 0:00:42]} e5 {[%emt 0:02:37]} 8. d5 {[%emt 0:00:12]} Ne7 {[%emt 0:01:54]} 9. g4 {[%emt 0:00:36]} a6 {[%emt 0:06:03]} 10. h4 {[%emt 0:00:25]} Bh8 {[%emt 0:03:14]} 11. h5 {[%emt 0:06:54]} b5 {[%emt 0:04:12]} 12. Qh2 {[%emt 0:00:52]} Kg7 {[%emt 0:22:12]} 13. hxg6 {[%emt 0:01:43]} fxg6 {[%emt 0:00:31]} 14. Bxf6+ {[%emt 0:00:43]} Kxf6 {[%emt 0:00:45]} 15. Qh4+ {[%emt 0:07:52]} Kf7 {[%emt 0:05:00]} 16. Qxh7+ {[%emt 0:01:49]} Bg7 {[%emt 0:01:01]} 17. Qh3 {[%emt 0:05:05]} Bd7 {[%emt 0:06:57]} 18. Nge2 {[%emt 0:05:56]} b4 {[%emt 0:06:22]} 19. Nb1 {[%emt 0:00:29]} a5 {[%emt 0:00:17]} 20. Qg3 {[%emt 0:04:30]} g5 {[%emt 0:08:10]} 21. Rh5 {[%emt 0:03:27]} Ng6 {[%emt 0:05:11]} 22. c4 {[%emt 0:04:08]} Qc8 {[%emt 0:06:14]} 23. Rxg5 {[%emt 0:01:03]} Bh6 24. Qh2 {[%emt 0:00:43]} Bxg5+ {[%emt 0:00:48]} 25. f4 {[%emt 0:00:51]} Rh8 {[%emt 0:02:27]} 26. Qf2 {[%emt 0:00:28]} Nxf4 {[%emt 0:00:53]} 27. c5 {[%emt 0:01:06]} Ke8 {[%emt 0:02:03]} 28. c6 {[%emt 0:00:08]} Nd3+ {[%emt 0:00:45]} 29. Kc2 {[%emt 0:00:24]} Nxf2 {[%emt 0:00:21]} 30. Re1 {[%emt 0:00:08] normal} 0-1

[Event "DVM U12 2019"]
[Site "Magedburg"]
[Date "2019.12.29"]
[Round "6"]
[White "Rumpold, Jaron"]
[Black "Monninkhoff, Yari"]
[Result "1/2-1/2"]
[ECO "A51"]
[WhiteElo "1123"]
[BlackElo "1272"]
[Annotator "NA"]
[PlyCount "69"]
[EventDate "2019.12.27"]
[EventType "team-tourn"]
[EventRounds "7"]
[EventCountry "GER"]
[SourceTitle "playchess.com"]
[Source "ChessBase"]
[SourceQuality "1"]
[WhiteTeam "SV Roter Turm Halle"]
[BlackTeam "SV Empor Berlin"]
[WhiteTeamCountry "GER"]
[BlackTeamCountry "GER"]
[TimeControl "40/5400+30:1800+30"]

1. d4 {[%emt 0:00:00]} Nf6 {[%emt 0:00:00]} 2. c4 {[%emt 0:00:00]} e5 {[%emt 0:00:00]} 3. d5 {[%emt 0:02:54]} Bc5 {[%emt 0:01:50]} 4. Nf3 {[%emt 0:03:06]} d6 {[%emt 0:01:04]} 5. Nc3 {[%emt 0:00:18]} Bf5 {[%emt 0:01:31]} 6. Bg5 {[%emt 0:02:12]} h6 {[%emt 0:02:08]} 7. Bxf6 {[%emt 0:04:39]} Qxf6 {[%emt 0:01:04]} 8. e4 {[%emt 0:00:54]} Bh7 {[%emt 0:02:09]} 9. Be2 {[%emt 0:01:42]} Nd7 {[%emt 0:02:35]} 10. O-O {[%emt 0:01:01]} O-O {[%emt 0:00:19]} 11. a3 {[%emt 0:02:24]} a6 {[%emt 0:00:41]} 12. Qc2 {[%emt 0:01:11]} Qe7 {[%emt 0:01:47]} 13. b4 {[%emt 0:01:28]} Bd4 {[%emt 0:02:56]} 14. Bd3 {[%emt 0:02:04]} Bxc3 {[%emt 0:04:17]} 15. Qxc3 {[%emt 0:00:25]} f5 {[%emt 0:00:41]} 16. Qc2 {[%emt 0:03:24]} f4 {[%emt 0:02:50]} 17. Rfc1 {[%emt 0:04:24]} g5 {[%emt 0:02:19]} 18. h3 {[%emt 0:02:35]} h5 {[%emt 0:01:40]} 19. Nh2 {[%emt 0:01:58]} Qg7 {[%emt 0:01:25]} 20. Qe2 {[%emt 0:01:40]} Nf6 {[%emt 0:03:18]} 21. f3 {[%emt 0:04:18]} Kh8 {[%emt 0:02:38]} 22. c5 {[%emt 0:07:18]} Rg8 {[%emt 0:01:17]} 23. cxd6 {[%emt 0:05:25]} cxd6 {[%emt 0:00:43]} 24. Rc2 {[%emt 0:03:00]} g4 {[%emt 0:00:33]} 25. hxg4 {[%emt 0:01:13]} hxg4 {[%emt 0:00:22]} 26. fxg4 {[%emt 0:00:48]} Nxg4 {[%emt 0:00:16]} 27. Nxg4 {[%emt 0:00:20]} Qxg4 {[%emt 0:00:26]} 28. Qxg4 {[%emt 0:00:10]} Rxg4 {[%emt 0:00:10]} 29. Rc7 {[%emt 0:00:59]} Rag8 {[%emt 0:01:48]} 30. Ra2 {[%emt 0:03:18]} f3 {[%emt 0:00:42]} 31. Rxb7 {[%emt 0:13:59]} Bxe4 {[%emt 0:02:32]} 32. Bxe4 {[%emt 0:01:22]} Rxe4 {[%emt 0:00:22]} 33. Rf7 {[%emt 0:02:53]} Re3 {[%emt 0:08:04]} 34. a4 {[%emt 0:07:22]} Rb3 {[%emt 0:01:28]} 35. Rf6 {[%emt 0:05:35] normal} 1/2-1/2

[Event "DVM U12 2019"]
[Site "Magedburg"]
[Date "2019.12.30"]
[Round "7"]
[White "Kageler, Anton Paul"]
[Black "Bungarten, Jona"]
[Result "0-1"]
[ECO "C90"]
[WhiteElo "1777"]
[BlackElo "1750"]
[Annotator "NA"]
[PlyCount "110"]
[EventDate "2019.12.27"]
[EventType "team-tourn"]
[EventRounds "7"]
[EventCountry "GER"]
[SourceTitle "playchess.com"]
[Source "ChessBase"]
[SourceQuality "1"]
[WhiteTeam "SV Roter Turm Halle"]
[BlackTeam "SF Brackel"]
[WhiteTeamCountry "GER"]
[BlackTeamCountry "GER"]
[TimeControl "40/5400+30:1800+30"]

1. e4 {[%emt 0:00:00]} e5 {[%emt 0:00:00]} 2. Nf3 {[%emt 0:00:00]} Nc6 {[%emt 0:00:00]} 3. Bb5 {[%emt 0:00:00]} Nf6 {[%emt 0:00:57]} 4. d3 {[%emt 0:00:00]} d6 {[%emt 0:00:33]} 5. c3 {[%emt 0:00:53]} Be7 {[%emt 0:00:18]} 6. O-O {[%emt 0:00:09]} O-O {[%emt 0:00:07]} 7. Re1 {[%emt 0:00:18]} a6 {[%emt 0:01:19]} 8. Ba4 {[%emt 0:00:08]} b5 {[%emt 0:01:39]} 9. Bb3 {[%emt 0:00:34]} Na5 {[%emt 0:01:29]} 10. Bc2 {[%emt 0:00:30]} c5 {[%emt 0:00:35]} 11. Nbd2 {[%emt 0:01:43]} Nc6 {[%emt 0:01:31]} 12. Nf1 {[%emt 0:01:27]} d5 {[%emt 0:06:56]} 13. exd5 {[%emt 0:02:15]} Qxd5 {[%emt 0:00:17]} 14. Bb3 {[%emt 0:03:47]} Qd6 {[%emt 0:01:09]} 15. Ng3 {[%emt 0:02:53]} Rd8 {[%emt 0:04:38]} 16. h3 {[%emt 0:03:05]} Qxd3 {[%emt 0:04:38]} 17. Qxd3 {[%emt 0:00:47]} Rxd3 {[%emt 0:00:09]} 18. Nxe5 {[%emt 0:00:42]} Nxe5 {[%emt 0:00:55]} 19. Rxe5 {[%emt 0:00:06]} Bd6 {[%emt 0:01:07]} 20. Re3 {[%emt 0:01:39]} Rxe3 {[%emt 0:02:09]} 21. Bxe3 {[%emt 0:00:56]} c4 {[%emt 0:08:54]} 22. Bc2 {[%emt 0:01:06]} Be6 {[%emt 0:03:57]} 23. Ne4 {[%emt 0:06:59]} Nxe4 {[%emt 0:02:41]} 24. Bxe4 {[%emt 0:00:35]} Rd8 {[%emt 0:03:17]} 25. Bd4 {[%emt 0:03:08]} Bc7 {[%emt 0:02:55]} 26. Kf1 {[%emt 0:05:07]} a5 {[%emt 0:04:23]} 27. Ke2 {[%emt 0:04:41]} Bd5 {[%emt 0:00:49]} 28. Bxd5 {[%emt 0:01:13]} Rxd5 {[%emt 0:01:46]} 29. Rd1 {[%emt 0:03:33]} f5 {[%emt 0:04:39]} 30. g3 {[%emt 0:15:17]} g6 {[%emt 0:02:31]} 31. Be3 {[%emt 0:05:18]} Rxd1 {[%emt 0:01:19]} 32. Kxd1 {[%emt 0:02:28]} Kf7 {[%emt 0:00:32]} 33. Bd4 {[%emt 0:03:54]} Ke6 {[%emt 0:01:01]} 34. Ke2 {[%emt 0:00:14]} Kd5 {[%emt 0:00:12]} 35. Ke3 {[%emt 0:00:15]} b4 {[%emt 0:03:05]} 36. f4 {[%emt 0:02:43]} Bd6 {[%emt 0:09:08]} 37. h4 {[%emt 0:02:18]} a4 {[%emt 0:03:23]} 38. cxb4 {[%emt 0:15:35]} Bxb4 {[%emt 0:00:25]} 39. Bc3 {[%emt 0:00:08]} a3 {[%emt 0:04:48]} 40. Kf3 {[%emt 0:00:41]} axb2 {[%emt 0:00:39]} 41. Bxb2 {[%emt 0:30:07]} Be1 {[%emt 0:32:09]} 42. Bf6 {[%emt 0:04:06]} c3 {[%emt 0:04:11]} 43. Ke2 {[%emt 0:00:38]} c2 {[%emt 0:00:46]} 44. Bb2 {[%emt 0:00:09]} Bxg3 {[%emt 0:00:11]} 45. Kd2 {[%emt 0:00:22]} c1=Q+ {[%emt 0:00:51]} 46. Kxc1 {[%emt 0:00:14]} Bxf4+ {[%emt 0:01:03]} 47. Kd1 {[%emt 0:00:18]} Be5 {[%emt 0:01:57]} 48. Bc1 {[%emt 0:00:23]} Bf6 {[%emt 0:00:10]} 49. Ke2 {[%emt 0:00:31]} Bxh4 {[%emt 0:00:08]} 50. a4 {[%emt 0:00:28]} Bd8 {[%emt 0:00:21]} 51. Kf3 {[%emt 0:00:10]} g5 {[%emt 0:00:48]} 52. a5 {[%emt 0:00:35]} Kc5 {[%emt 0:00:19]} 53. Bd2 {[%emt 0:00:28]} Kb5 {[%emt 0:00:33]} 54. Kg3 {[%emt 0:00:16]} h6 {[%emt 0:00:07]} 55. Kf3 {[%emt 0:00:06]} Bxa5 {[%emt 0:00:13] normal} 0-1

[Event "DVM U12 2019"]
[Site "Magedburg"]
[Date "2019.12.30"]
[Round "7"]
[White "Hecht, Jonas Christian"]
[Black "Fuhrmann, Bahne"]
[Result "1-0"]
[ECO "C45"]
[WhiteElo "1754"]
[BlackElo "1603"]
[Annotator "NA"]
[PlyCount "55"]
[EventDate "2019.12.27"]
[EventType "team-tourn"]
[EventRounds "7"]
[EventCountry "GER"]
[SourceTitle "playchess.com"]
[Source "ChessBase"]
[SourceQuality "1"]
[WhiteTeam "SC Kreuzberg"]
[BlackTeam "Hamburger SK"]
[BlackTeamCountry "GER"]
[TimeControl "40/5400+30:1800+30"]

1. e4 {[%emt 0:00:00]} e5 {[%emt 0:00:00]} 2. Nf3 {[%emt 0:00:00]} Nc6 {[%emt 0:00:00]} 3. d4 {[%emt 0:00:00]} exd4 {[%emt 0:00:00]} 4. Nxd4 {[%emt 0:00:00]} Bc5 {[%emt 0:00:00]} 5. Nxc6 {[%emt 0:00:00]} Qf6 {[%emt 0:00:00]} 6. Qd2 {[%emt 0:00:02]} dxc6 {[%emt 0:03:29]} 7. Nc3 {[%emt 0:00:06]} Bd7 {[%emt 0:03:01]} 8. Bd3 {[%emt 0:00:20]} O-O-O {[%emt 0:01:23]} 9. O-O {[%emt 0:00:47]} Ne7 {[%emt 0:01:54]} 10. Kh1 {[%emt 0:01:31]} h5 {[%emt 0:05:20]} 11. f4 {[%emt 0:01:10]} g6 {[%emt 0:01:28]} 12. a4 {[%emt 0:07:11]} Bb4 {[%emt 0:05:45]} 13. Qf2 {[%emt 0:02:19]} b6 {[%emt 0:11:30]} 14. Be3 {[%emt 0:10:43]} Bxc3 {[%emt 0:03:08]} 15. bxc3 {[%emt 0:02:20]} Kb8 {[%emt 0:13:09]} 16. Bd4 {[%emt 0:02:02]} Qe6 {[%emt 0:00:27]} 17. Bxh8 {[%emt 0:00:58]} Rxh8 {[%emt 0:00:05]} 18. Rfb1 {[%emt 0:05:08]} Ka8 {[%emt 0:02:49]} 19. a5 {[%emt 0:02:50]} c5 {[%emt 0:00:30]} 20. axb6 {[%emt 0:02:52]} cxb6 {[%emt 0:00:23]} 21. e5 {[%emt 0:12:42]} Bc8 {[%emt 0:02:40]} 22. Be4+ {[%emt 0:01:15]} Bb7 {[%emt 0:01:12]} 23. Bxb7+ {[%emt 0:01:27]} Kxb7 {[%emt 0:00:02]} 24. Qxc5 {[%emt 0:00:14]} Rd8 {[%emt 0:01:58]} 25. Rxa7+ {[%emt 0:04:08]} Kxa7 {[%emt 0:00:18]} 26. Qc7+ {[%emt 0:00:03]} Ka6 {[%emt 0:01:01]} 27. Qxd8 {[%emt 0:00:09] normal} Nc8 {[%emt 0:02:05] normal} 28. Qc7 {[%emt 0:01:53] normal} 1-0

[Event "DVM U12 2019"]
[Site "Magedburg"]
[Date "2019.12.30"]
[Round "7"]
[White "Krüger, Arthur"]
[Black "Held, Momme Fredrik"]
[Result "1-0"]
[ECO "C55"]
[WhiteElo "1693"]
[BlackElo "1573"]
[Annotator "NA"]
[PlyCount "94"]
[EventDate "2019.12.27"]
[EventType "team-tourn"]
[EventRounds "7"]
[EventCountry "GER"]
[SourceTitle "playchess.com"]
[Source "ChessBase"]
[SourceQuality "1"]
[WhiteTeam "Hamburger SK"]
[BlackTeam "SC Kreuzberg"]
[BlackTeamCountry "GER"]
[TimeControl "40/5400+30:1800+30"]

1. e4 {[%emt 0:00:00]} e5 {[%emt 0:00:00]} 2. Nf3 {[%emt 0:00:00]} Nc6 {[%emt 0:00:00]} 3. Bc4 {[%emt 0:00:00]} Nf6 {[%emt 0:00:00]} 4. d3 {[%emt 0:00:03]} Be7 {[%emt 0:00:28]} 5. O-O {[%emt 0:00:15]} O-O {[%emt 0:00:07]} 6. Re1 {[%emt 0:00:12]} d6 {[%emt 0:00:22]} 7. a4 {[%emt 0:00:06]} a5 {[%emt 0:00:42]} 8. Nbd2 {[%emt 0:05:17]} Bg4 {[%emt 0:01:51]} 9. h3 {[%emt 0:03:17]} Bh5 {[%emt 0:03:19]} 10. c3 {[%emt 0:02:14]} Qd7 {[%emt 0:06:18]} 11. Nf1 {[%emt 0:03:59]} Bg6 {[%emt 0:00:45]} 12. Ng3 {[%emt 0:06:42]} Ne8 {[%emt 0:06:30]} 13. Qb3 {[%emt 0:09:11]} Kh8 {[%emt 0:03:45]} 14. Bg5 {[%emt 0:06:34]} f6 {[%emt 0:12:13]} 15. Be6 {[%emt 0:01:53]} Bf7 {[%emt 0:07:00]} 16. Bxf7 {[%emt 0:03:09]} fxg5 {[%emt 0:00:19]} 17. Be6 {[%emt 0:00:36]} Qd8 {[%emt 0:02:26]} 18. Qxb7 {[%emt 0:06:32]} Na7 {[%emt 0:00:52]} 19. Nf5 {[%emt 0:05:48]} Bf6 {[%emt 0:01:14]} 20. Bd5 {[%emt 0:05:27]} c6 {[%emt 0:01:40]} 21. Bxc6 {[%emt 0:00:49]} Nxc6 {[%emt 0:00:14]} 22. Qxc6 {[%emt 0:00:07]} Rc8 {[%emt 0:00:26]} 23. Qd5 {[%emt 0:03:27]} Rb8 {[%emt 0:00:45]} 24. Qa2 {[%emt 0:01:50]} Nc7 {[%emt 0:00:35]} 25. Ne3 {[%emt 0:01:33]} Na6 {[%emt 0:01:49]} 26. Nd5 {[%emt 0:06:41]} Nc5 {[%emt 0:01:24]} 27. Red1 {[%emt 0:00:39]} Qe8 {[%emt 0:02:58]} 28. b4 {[%emt 0:01:35]} axb4 {[%emt 0:02:22]} 29. cxb4 {[%emt 0:00:17]} Ne6 {[%emt 0:00:34]} 30. Rab1 {[%emt 0:02:51]} Qh5 {[%emt 0:00:37]} 31. Nh2 {[%emt 0:03:52]} Nd4 {[%emt 0:05:33]} 32. a5 {[%emt 0:02:04]} Bd8 {[%emt 0:01:08]} 33. Re1 {[%emt 0:04:43]} g4 {[%emt 0:01:20]} 34. hxg4 {[%emt 0:03:10]} Qe8 {[%emt 0:03:43]} 35. Ne3 {[%emt 0:03:16]} g6 {[%emt 0:02:36]} 36. Nc2 {[%emt 0:01:27]} Nb5 {[%emt 0:00:15]} 37. Rb3 {[%emt 0:02:35]} Qf7 {[%emt 0:00:36]} 38. Nf3 {[%emt 0:02:52]} Bh4 {[%emt 0:00:44]} 39. Rb2 {[%emt 0:02:08]} Qf6 {[%emt 0:00:05]} 40. Na3 {[%emt 0:01:26]} Nd4 {[%emt 0:02:04]} 41. Nxd4 {[%emt 0:30:33]} exd4 {[%emt 0:30:16]} 42. Rf1 {[%emt 0:00:00]} Qf4 {[%emt 0:00:00]} 43. a6 {[%emt 0:00:00]} Bf6 {[%emt 0:00:00]} 44. Nc4 {[%emt 0:00:00]} d5 {[%emt 0:00:00]} 45. exd5 {[%emt 0:00:00]} Bd8 {[%emt 0:00:00]} 46. d6 {[%emt 0:00:00]} Qxg4 {[%emt 0:00:00] normal} 47. Ne5 {[%emt 0:00:00] normal} Qh4 {[%emt 0:00:00] normal} 1-0